fUSD/lending_fUSD_20260331
["ID","MTS","AMOUNT","RATE_DAILY","PERIOD"]
[419144807,1774931433500,-500.0,0.00015995,2]
[419144808,1774931433509,-500.0,0.00015995,2]
[419144809,1774931433519,-1780.07159067,0.00015995,2]
[419144810,1774931433529,-511.76160615,0.00015996,2]
[419144811,1774931433538,-500.0,0.00015996,2]
[419144812,1774931433548,-488.09,0.00015996,2]
[419144813,1774931433557,-498.70852638,0.00015996,2]
[419144814,1774931433567,-505.68583514,0.00015996,2]
[419144815,1774931433577,-502.2481036,0.00015996,2]
[419144816,1774931433587,-195.34,0.00015996,2]
[419144817,1774931433596,-503.96151551,0.00015996,2]
[419144818,1774931433606,-510.39304896,0.00015996,2]
[419144819,1774931433616,-500.0,0.00015996,2]
[419144820,1774931433625,-500.0,0.00015996,2]
[419144821,1774931433634,-514.63553368,0.00015996,2]
[419144822,1774931433643,-509.85375718,0.00015996,2]
[419144823,1774931433653,-500.0,0.00015996,2]
[419144824,1774931433662,-500.0,0.00015996,2]
[419144825,1774931433671,-507.68138774,0.00015996,2]
[419144826,1774931433681,-500.0,0.00015996,2]
[419144827,1774931433690,-500.0,0.00015996,2]
[419144828,1774931433701,-500.0,0.00015996,2]
[419144829,1774931433710,-500.0,0.00015996,2]
[419144830,1774931433720,-500.0,0.00015996,2]
[419144831,1774931433729,-476.03802258,0.00015996,2]
[419144832,1774931433738,-506.31275977,0.00015996,2]
[419144833,1774931433748,-712.8182114,0.00015997,2]
[419144834,1774931433760,-24404.27237927,0.00015997,2]
[419144835,1774931433801,-8500.0,0.00015997,2]
[419144836,1774931433827,-600.0,0.00015997,2]
[419144850,1774931440334,-300.0,0.000159,2]
[419144851,1774931440443,-63.77890004,0.000159,2]
[419144852,1774931440453,-2046.00637402,0.00015997,2]
[419144853,1774931440500,-6758.40000009,0.00015997,2]
[419144855,1774931440669,-362.03113336,0.00015997,2]
[419144856,1774931440722,-1221.83478,0.00015997,2]
[419144858,1774931440847,-3404.56,0.00015997,2]
[419144859,1774931440859,-613.832365,0.00015997,2]
[419144860,1774931440871,-1983.26605906,0.00015997,2]
[419144861,1774931440883,-388.44432704,0.00015997,2]
[419144862,1774931440894,-1651.93650229,0.00015997,2]
[419144868,1774931443274,-26753.54523662,0.00015997,2]
[419144870,1774931443343,-25058.88727171,0.00015997,2]
[419144874,1774931445759,-248.0,0.00015753,2]
[419144875,1774931445769,-149182.93986662,0.00015997,2]
[419144915,1774932547138,-250.0,0.00013,2]
[419144916,1774932547159,-150.0,0.00013933,2]
[419144917,1774932547180,-166.66,0.00014003,2]
[419144918,1774932547201,-150.0,0.00014272,2]
[419144919,1774932547222,-166.66,0.00014298,2]
[419144921,1774932631675,-150.0,0.00014344,2]
[419144922,1774932631686,-385.6999957,0.000144,2]
[419144923,1774932631701,-213.25944044,0.00014534,2]
[419144924,1774932631710,-42.38617291,0.00014561,2]
[419144925,1774932631722,-107.61382709,0.00014561,2]
[419144926,1774932631731,-166.66,0.00014593,2]
[419144927,1774932631741,-227.27817076,0.00014634,2]
[419144928,1774932631752,-339.75260614,0.00014634,2]
[419144929,1774932631763,-113.1167231,0.00014634,2]
[419144930,1774932631772,-150.0,0.00014724,2]
[419144931,1774932631783,-300.0,0.00014724,2]
[419144932,1774932631792,-304.17793025,0.00014724,2]
[419144933,1774932631821,-895.82206975,0.00014724,2]
[419144934,1774932631830,-500.0,0.00014725,2]
[419144935,1774932631840,-500.0,0.00014725,2]
[419144936,1774932631851,-500.0,0.00014725,2]
[419144937,1774932631860,-200.0,0.00014725,2]
[419144938,1774932631870,-473.05570663,0.00014725,2]
[419144939,1774932631881,-151.0,0.00014725,2]
[419144940,1774932631891,-151.0,0.00014725,2]
[419144941,1774932631902,-151.0,0.00014725,2]
[419144942,1774932631913,-151.0,0.00014725,2]
[419144943,1774932631923,-151.0,0.00014725,2]
[419144965,1774932631932,-151.0,0.00014725,2]
[419144966,1774932632533,-151.0,0.00014725,2]
[419144967,1774932632542,-151.0,0.00014725,2]
[419144968,1774932632552,-151.0,0.00014725,2]
[419144969,1774932632561,-151.0,0.00014725,2]
[419144970,1774932632570,-151.0,0.00014725,2]
[419144971,1774932632579,-151.0,0.00014725,2]
[419144972,1774932632589,-168.59384673,0.00014725,2]
[419144973,1774932632599,-151.0,0.00014725,2]
[419144974,1774932632609,-151.0,0.00014725,2]
[419144975,1774932632618,-151.0,0.00014725,2]
[419144976,1774932632627,-151.0,0.00014725,2]
[419144977,1774932632636,-151.0,0.00014725,2]
[419144978,1774932632646,-151.0,0.00014725,2]
[419144979,1774932632656,-540.37460383,0.00014725,2]
[419144980,1774932632666,-257.558448,0.00014725,2]
[419144981,1774932632676,-151.0,0.00014725,2]
[419144982,1774932632686,-151.0,0.00014725,2]
[419144983,1774932632697,-837.62,0.0001474,2]
[419144984,1774932632707,-154.29,0.0001474,2]
[419144985,1774932632717,-166.66,0.00014888,2]
[419144986,1774932632726,-1953.79,0.00014961,2]
[419144987,1774932632736,-5193.92,0.00014961,2]
[419144988,1774932632745,-300.0,0.00015,2]
[419144989,1774932632754,-213.25944042,0.00015065,2]
[419144990,1774932632765,-2000.0,0.000151,2]
[419144991,1774932632774,-151.0,0.00015163,2]
[419144992,1774932632784,-1328.27659266,0.00015163,2]
[419144993,1774932632794,-200.0,0.00015163,2]
[419144994,1774932632804,-644.79446246,0.00015163,2]
[419144995,1774932632816,-166.66,0.00015182,2]
[419144996,1774932632827,-190.74,0.0001521,2]
[419144997,1774932632836,-302.90983201,0.0001532,2]
[419144998,1774932632846,-500.0,0.00015328,2]
[419144999,1774932632855,-278.23852348,0.00015329,2]
[419145000,1774932632864,-345.29441473,0.0001533,2]
[419145001,1774932632873,-1360.11207351,0.0001533,2]
[419145002,1774932632882,-946.0,0.00015363,2]
[419145003,1774932632891,-1862.0,0.00015363,2]
[419145004,1774932632901,-1125.0,0.00015363,2]
[419145005,1774932632910,-760.0,0.00015363,2]
[419145006,1774932632920,-2048.0,0.00015363,2]
[419145007,1774932632929,-986.0,0.00015363,2]
[419145008,1774932632939,-2500.0,0.00015404,2]
[419145009,1774932632948,-166.67,0.0001541,2]
[419145010,1774932632957,-881.0,0.0001544,2]
[419145011,1774932632966,-166.66,0.00015477,2]
[419145012,1774932632975,-213.25944042,0.00015596,2]
[419145013,1774932632984,-500.0,0.00015602,2]
[419145014,1774932632993,-3443.0,0.00015607,2]
[419145015,1774932633003,-449.0,0.0001568,2]
[419145016,1774932633014,-5140.76693776,0.0001568,2]
[419145017,1774932633023,-263.242542,0.0001568,7]
[419145018,1774932633033,-160.0,0.0001568,7]
[419145019,1774932633044,-216.835152,0.0001568,7]
[419145020,1774932633052,-273.670305,0.0001568,7]
[419145021,1774932633061,-150.0,0.00015683,2]
[419145022,1774932633071,-652.4,0.00015684,2]
[419145023,1774932633080,-3014.86,0.00015684,2]
[419145024,1774932633090,-983.33,0.00015684,2]
[419145025,1774932633099,-9350.86,0.00015684,2]
[419145026,1774932633108,-5045.0,0.00015696,2]
[419145027,1774932633118,-1953.79,0.00015709,2]
[419145028,1774932633127,-881.0,0.00015714,2]
[419145029,1774932633137,-449.0,0.00015721,2]
[419145030,1774932633146,-3443.0,0.0001573,2]
[419145031,1774932633156,-159.0,0.00015753,2]
[419145032,1774932633165,-459.470044,0.00015755,7]
[419145033,1774932633174,-5045.0,0.00015758,2]
[419145034,1774932633183,-195.0,0.00015778,2]
[419145035,1774932633204,-250.0,0.00015778,2]
[419145036,1774932633215,-449.0,0.00015789,2]
[419145037,1774932633224,-1267.7366,0.00015797,2]
[419145038,1774932633234,-30420.4251,0.00015797,2]
[419145039,1774932633243,-1246.05011355,0.00015797,2]
[419145040,1774932633253,-1081.752,0.00015799,2]
[419145041,1774932633263,-1000.0,0.00015802,2]
[419145042,1774932633273,-160.0,0.00015827,7]
[419145043,1774932633283,-264.244781,0.00015827,7]
[419145044,1774932633293,-368.489563,0.00015827,7]
[419145045,1774932633302,-29906.50720721,0.0001584,2]
[419145046,1774932635563,-1850.0,0.0001584,2]
[419145047,1774932635582,-7324.12064834,0.0001584,2]
[419145048,1774932635596,-255.0,0.00015843,2]
[419145049,1774932635610,-2753.67817904,0.00015845,2]
[419145050,1774932635632,-310.55827694,0.00015845,2]
[419145051,1774932635647,-334.02485,0.00015845,2]
[419145052,1774932635664,-511.41,0.00015845,2]
[419145053,1774932635698,-1135.32869402,0.00015845,2]
[419145054,1774932635712,-500.0,0.00015871,2]
[419145055,1774932635726,-200.0,0.00015871,2]
[419145056,1774932635739,-500.0,0.00015871,2]
[419145057,1774932635752,-160.0,0.00015876,7]
[419145058,1774932635766,-283.05052,0.00015876,7]
[419145059,1774932635779,-406.101041,0.00015876,7]
[419145060,1774932635793,-160.0,0.00015876,7]
[419145061,1774932635806,-470.836487,0.00015876,7]
[419145062,1774932635824,-768.22325798,0.00015876,7]
[419145067,1774932637811,-346.5426,0.00015596,2]
[419145068,1774932637823,-13.44971602,0.00015876,7]
[419145075,1774932638503,-151.0,0.00015894,2]
[419145078,1774932638552,-160.0,0.00015894,7]
[419145079,1774932638586,-481.537316,0.00015894,7]
[419145080,1774932638605,-803.074633,0.00015894,7]
[419145081,1774932638615,-5045.0,0.00015895,2]
[419145082,1774932638625,-2500.0,0.00015897,2]
[419145083,1774932638636,-434.54510403,0.000159,2]
[419145084,1774932638646,-1051.88846743,0.000159,2]
[419145086,1774932640742,-3127.88569398,0.000159,2]
[419145183,1774932642849,-820.22583859,0.000159,2]
[419145185,1774932642858,-521.78130942,0.000159,2]
[419145187,1774932642868,-2100.77097094,0.000159,2]
[419145189,1774932642877,-202.05112558,0.000159,2]
[419145191,1774932642886,-3198.54507352,0.000159,2]
[419145193,1774932642895,-5716.4697965,0.000159,2]
[419145195,1774932642904,-1246.05011346,0.0001592,2]
[419145196,1774932642913,-200.0,0.00015937,2]
[419145197,1774932642923,-500.0,0.0001597,2]
[419145199,1774932642932,-500.0,0.0001597,2]
[419145201,1774932642941,-1000.0,0.0001597,2]
[419145203,1774932642950,-500.0,0.0001597,2]
[419145205,1774932642959,-1887.15799433,0.0001597,2]
[419145206,1774932642968,-662.39396078,0.0001597,2]
[419145208,1774932642977,-501.22367552,0.00015973,2]
[419145210,1774932642986,-210.84773935,0.00015973,2]
[419145212,1774932642995,-515.41384431,0.00015973,2]
[419145213,1774932643004,-500.39048904,0.00015973,2]
[419145214,1774932643014,-500.0,0.00015973,2]
[419145215,1774932643023,-501.08227451,0.00015973,2]
[419145216,1774932643032,-1524.0,0.00015977,2]
[419145217,1774932643042,-1524.0,0.00015977,2]
[419145218,1774932643052,-152.0,0.00015977,2]
[419145219,1774932643062,-161.0,0.00015977,2]
[419145220,1774932643072,-1524.0,0.00015977,2]
[419145221,1774932643081,-152.0,0.00015977,2]
[419145222,1774932643091,-161.0,0.00015977,2]
[419145223,1774932643100,-1524.0,0.00015977,2]
[419145224,1774932643110,-152.0,0.00015977,2]
[419145225,1774932643119,-165.23502785,0.00015977,2]
[419145226,1774932643129,-1524.0,0.00015977,2]
[419145227,1774932643139,-152.0,0.00015977,2]
[419145228,1774932643149,-1524.0,0.00015977,2]
[419145229,1774932643159,-1524.0,0.00015977,2]
[419145230,1774932643168,-1524.0,0.00015977,2]
[419145231,1774932643178,-154.67992606,0.00015977,2]
[419145232,1774932643188,-152.0,0.00015977,2]
[419145233,1774932643198,-1524.0,0.00015977,2]
[419145234,1774932643208,-152.0,0.00015977,2]
[419145235,1774932643218,-1524.0,0.00015977,2]
[419145236,1774932643228,-1524.0,0.00015977,2]
[419145237,1774932643238,-152.0,0.00015977,2]
[419145238,1774932643247,-1524.0,0.00015977,2]
[419145239,1774932643257,-1524.0,0.00015977,2]
[419145240,1774932643267,-152.0,0.00015977,2]
[419145241,1774932643276,-1524.0,0.00015977,2]
[419145242,1774932643287,-1524.0,0.00015977,2]
[419145243,1774932643297,-152.0,0.00015977,2]
[419145244,1774932643306,-1524.0,0.00015977,2]
[419145245,1774932643316,-152.0,0.00015977,2]
[419145246,1774932643326,-152.0,0.00015977,2]
[419145247,1774932643336,-152.0,0.00015977,2]
[419145248,1774932643345,-152.0,0.00015977,2]
[419145249,1774932643355,-152.0,0.00015977,2]
[419145250,1774932643364,-882.62,0.00015988,2]
[419145251,1774932643373,-4346.8524978,0.00015989,2]
[419145252,1774932643382,-1483.4787641,0.00015989,2]
[419145253,1774932643392,-150.0,0.0001599,2]
[419145254,1774932643401,-160.69489502,0.0001599,2]
[419145255,1774932643411,-151.0,0.00015994,2]
[419145256,1774932643420,-150.0,0.00015994,2]
[419145257,1774932643429,-503.97005411,0.00015995,2]
[419145258,1774932643440,-155.341,0.00015996,2]
[419145259,1774932643449,-500.0,0.00015996,2]
[419145260,1774932643459,-500.0,0.00015996,2]
[419145261,1774932643468,-500.0,0.00015996,2]
[419145262,1774932643478,-500.0,0.00015996,2]
[419145263,1774932643487,-517.18516511,0.00015996,2]
[419145264,1774932643497,-275.11533584,0.00015996,2]
[419145265,1774932643506,-465.33463116,0.00015996,2]
[419145266,1774932643516,-346164.90429282,0.00015997,2]
[419145267,1774932643526,-3618.0253978,0.00015997,2]
[419145268,1774932643535,-200.0,0.00015997,2]
[419145269,1774932643546,-253.00000001,0.00015997,2]
[419145270,1774932643556,-3123.4450047,0.00015997,2]
[419145271,1774932643566,-151.0,0.00015997,2]
[419145272,1774932643576,-294.97856322,0.00015997,2]
[419145273,1774932643585,-200.0,0.00015997,2]
[419145274,1774932643595,-151.0,0.00015997,2]
[419145275,1774932643604,-151.0,0.00015997,2]
[419145276,1774932643615,-159.315278,0.00015997,2]
[419145277,1774932643624,-151.0,0.00015997,2]
[419145278,1774932643634,-151.0,0.00015997,2]
[419145279,1774932643643,-151.0,0.00015997,2]
[419145280,1774932643653,-856.39818,0.00015997,2]
[419145281,1774932643662,-151.0,0.00015997,2]
[419145282,1774932643672,-151.0,0.00015997,2]
[419145283,1774932643681,-151.0,0.00015997,2]
[419145284,1774932643691,-759.300865,0.00015997,2]
[419145285,1774932643700,-759.300865,0.00015997,2]
[419145286,1774932643710,-759.300865,0.00015997,2]
[419145287,1774932643719,-759.300865,0.00015997,2]
[419145288,1774932643728,-1145.1088391,0.00015997,2]
[419145289,1774932643737,-156.0,0.00015997,3]
[419145290,1774932643746,-394.0,0.00015997,3]
[419145291,1774932643756,-200.0,0.00015998,2]
[419145292,1774932643765,-302.0,0.00015999,2]
[419145293,1774932643774,-300.0,0.00015999,2]
[419145294,1774932643784,-500.0,0.00015999,2]
[419145295,1774932643793,-500.0,0.00015999,2]
[419145296,1774932643803,-500.0,0.00015999,2]
[419145297,1774932643812,-500.0,0.00015999,2]
[419145298,1774932643823,-500.0,0.00015999,2]
[419145299,1774932643832,-233.7909866,0.00015999,2]
[419145300,1774932643842,-213.40781589,0.00015999,2]
[419145301,1774932643852,-500.0,0.00015999,2]
[419145302,1774932643862,-500.0,0.00015999,2]
[419145303,1774932643872,-500.0,0.00015999,2]
[419145304,1774932643882,-310.85576368,0.00015999,2]
[419145305,1774932643891,-192.8328079,0.00015999,2]
[419145306,1774932643902,-1071.0,0.00016,5]
[419145307,1774932643911,-1183.0,0.00016,5]
[419145308,1774932643921,-1073.0,0.00016,5]
[419145309,1774932643931,-205031.56080672,0.00016,2]
[419145310,1774932644005,-152.0,0.00015977,2]
[419145311,1774932644016,-532.99999982,0.00016,2]
[419145316,1774932647120,-2676.40285567,0.00015596,2]
[419145344,1774933640125,-240.08436507,0.00014589,2]
[419145345,1774933751089,-1697.45,0.00012124,2]
[419145353,1774933832009,-1759.91563493,0.00014589,2]
[419145354,1774933832019,-1852.42,0.00014589,2]
[419145355,1774933832029,-300.0,0.00014589,2]
[419145356,1774933832039,-1200.0,0.00014739,2]
[419145357,1774933832049,-4235.16,0.0001474,2]
[419145358,1774933832059,-200.0,0.00014985,2]
[419145359,1774933832068,-200.0,0.00014985,2]
[419145360,1774933832079,-3240.0,0.00014985,2]
[419145361,1774933832088,-300.0,0.00015162,2]
[419145362,1774933832098,-10260.2314,0.00015163,2]
[419145363,1774933832108,-131528.162,0.00015163,2]
[419145364,1774933832118,-350.0,0.00015219,2]
[419145365,1774933832128,-151.0,0.00015254,2]
[419145366,1774933832138,-1280.88388878,0.00015254,2]
[419145367,1774933832149,-151.0,0.00015254,2]
[419145368,1774933832158,-151.0,0.00015254,2]
[419145369,1774933832167,-151.0,0.00015254,2]
[419145370,1774933832176,-151.0,0.00015254,2]
[419145371,1774933832186,-200.0,0.00015254,2]
[419145372,1774933832195,-13416.65004795,0.00015262,2]
[419145373,1774933832204,-163.49,0.00015501,2]
[419145374,1774933832214,-4000.0,0.00015507,2]
[419145375,1774933832223,-350.0,0.00015521,2]
[419145376,1774933832232,-156.0,0.00015596,3]
[419145377,1774933832241,-382.0,0.00015596,3]
[419145378,1774933832252,-293.0,0.00015597,2]
[419145379,1774933832261,-2000.0,0.000156,2]
[419145380,1774933832275,-150.0,0.00015626,2]
[419145381,1774933832285,-150.0,0.00015626,2]
[419145382,1774933832295,-200.9510819,0.00015626,2]
[419145383,1774933832305,-382.0,0.00015666,2]
[419145384,1774933832314,-3427.17795851,0.0001568,2]
[419145385,1774933832324,-350.0,0.00015711,2]
[419145386,1774933832334,-293.0,0.00015736,2]
[419145387,1774933832344,-2341.7088,0.00015745,2]
[419145388,1774933832354,-1000.0,0.00015745,2]
[419145389,1774933832364,-293.0,0.00015771,2]
[419145390,1774933832373,-648.0,0.00015781,2]
[419145391,1774933832383,-2218.3626,0.00015795,2]
[419145392,1774933832393,-191.46294825,0.00015802,2]
[419145393,1774933832403,-1309.034,0.0001585,2]
[419145394,1774933832412,-170.681,0.0001585,2]
[419145395,1774933832422,-500.0,0.00015871,2]
[419145396,1774933832432,-500.0,0.00015871,2]
[419145397,1774933832441,-293.0,0.00015889,2]
[419145398,1774933832451,-4000.0,0.00015895,2]
[419145399,1774933832461,-286.4705,0.00015899,2]
[419145400,1774933832471,-1293.51868924,0.00015899,2]
[419145401,1774933832480,-372.467232,0.000159,2]
[419145402,1774933832490,-5000.0,0.000159,2]
[419145403,1774933832499,-500.0,0.000159,2]
[419145404,1774933832509,-437.8354227,0.000159,2]
[419145405,1774933832519,-2132.36338234,0.000159,2]
[419145406,1774933832528,-2622.98505584,0.000159,2]
[419145407,1774933832538,-242.51926668,0.000159,2]
[419145408,1774933832548,-382.0,0.00015919,2]
[419145409,1774933832557,-293.0,0.00015919,2]
[419145410,1774933832567,-415.0,0.00015929,2]
[419145411,1774933832576,-3767.0,0.00015929,2]
[419145412,1774933832586,-159.0,0.00015943,2]
[419145413,1774933832595,-174.0,0.00015943,2]
[419145414,1774933832605,-159.407609,0.00015943,2]
[419145415,1774933832615,-158.0,0.00015943,2]
[419145416,1774933832624,-150.0,0.0001595,2]
[419145417,1774933832634,-500.0,0.00015973,2]
[419145418,1774933832644,-500.62117525,0.00015973,2]
[419145419,1774933832653,-500.0,0.00015973,2]
[419145420,1774933832663,-500.0,0.00015973,2]
[419145421,1774933832673,-500.0,0.00015973,2]
[419145422,1774933832682,-527.30858938,0.00015973,2]
[419145423,1774933832692,-501.10467886,0.00015973,2]
[419145424,1774933832702,-500.0,0.00015973,2]
[419145425,1774933832712,-500.89236103,0.00015973,2]
[419145426,1774933832722,-500.0,0.00015973,2]
[419145427,1774933832731,-500.0,0.00015973,2]
[419145428,1774933832741,-168.59758091,0.00015973,2]
[419145429,1774933832752,-152.0,0.00015977,2]
[419145430,1774933832762,-181.57570116,0.00015977,2]
[419145431,1774933832771,-152.27361986,0.00015977,2]
[419145432,1774933832783,-160.69489503,0.0001599,2]
[419145433,1774933832793,-20796.5203671,0.00015996,2]
[419145434,1774933832802,-180.1308779,0.00015996,2]
[419145435,1774933832812,-26753.54523662,0.00015997,2]
[419145436,1774933832821,-1524.0,0.00015998,2]
[419145437,1774933832830,-1524.0,0.00015998,2]
[419145438,1774933832840,-152.0,0.00015998,2]
[419145439,1774933832850,-1524.0,0.00015998,2]
[419145440,1774933832859,-1524.0,0.00015998,2]
[419145441,1774933832868,-1524.0,0.00015998,2]
[419145442,1774933832879,-1306.90176065,0.00015998,2]
[419145443,1774933832891,-500.0,0.00015999,2]
[419145444,1774933832903,-513.70614268,0.00015999,2]
[419145445,1774933832913,-500.0,0.00015999,2]
[419145446,1774933832923,-500.0,0.00015999,2]
[419145447,1774933832935,-500.0,0.00015999,2]
[419145448,1774933832945,-500.0,0.00015999,2]
[419145449,1774933832955,-500.0,0.00015999,2]
[419145450,1774933832965,-500.0,0.00015999,2]
[419145451,1774933832976,-500.0,0.00015999,2]
[419145452,1774933832987,-500.0,0.00015999,2]
[419145453,1774933832999,-500.0,0.00015999,2]
[419145454,1774933833009,-500.0,0.00015999,2]
[419145455,1774933833019,-584.34220324,0.00015999,2]
[419145456,1774933833029,-500.0,0.00015999,2]
[419145457,1774933833038,-500.0,0.00015999,2]
[419145458,1774933833048,-500.0,0.00015999,2]
[419145459,1774933833058,-500.0,0.00015999,2]
[419145460,1774933833068,-563.65369063,0.00015999,2]
[419145461,1774933833077,-500.0,0.00015999,2]
[419145462,1774933833088,-500.0,0.00015999,2]
[419145463,1774933833098,-267.59903457,0.00015999,2]
[419145464,1774933833108,-864.0,0.00016,5]
[419145465,1774933833117,-685.0,0.00016,5]
[419145466,1774933833127,-3333.72588202,0.00016,2]
[419145467,1774933833140,-1517.13268707,0.00016,2]
[419145468,1774933833152,-265.75321331,0.00016,2]
[419145472,1774933837990,-263.26749949,0.0001589,2]
[419145473,1774933838044,-593.457277,0.0001589,2]
[419145474,1774933838096,-143.27522351,0.0001589,2]
[419145475,1774933838106,-1000.0,0.0001589,2]
[419145476,1774933838115,-897.23542521,0.0001589,2]
[419145477,1774933838127,-102.76457479,0.0001589,2]
[419145478,1774933838136,-294.75742733,0.0001589,2]
[419145479,1774933838148,-705.24257267,0.0001589,2]
[419145480,1774933838157,-397.95395529,0.0001589,2]
[419145481,1774933838168,-490.0,0.0001589,2]
[419145482,1774933838204,-112.04604471,0.0001589,2]
[419145483,1774933838213,-1000.0,0.0001589,2]
[419145484,1774933838222,-1000.0,0.0001589,2]
[419145485,1774933838231,-1000.0,0.0001589,2]
[419145486,1774933838240,-155.854,0.0001589,2]
[419145487,1774933838249,-5316.64995529,0.00016,2]
[419145524,1774933840247,-48096.02872005,0.00016,2]
[419145525,1774933840301,-689.72524371,0.00016,2]
[419145526,1774933840312,-929.44880115,0.00016,2]
[419145527,1774933840323,-862.91952571,0.00016,2]
[419145528,1774933840356,-3247.22699467,0.00016,2]
[419145529,1774933840935,-669.878833,0.00015929,2]
[419145530,1774933840946,-513.92439638,0.00015929,2]
[419145551,1774933845907,-2085.65510674,0.00015929,2]
[419145552,1774933846483,-2745.54166388,0.00015929,2]
[419145553,1774933846493,-2164.34275493,0.00016,2]
[419145554,1774933846643,-637.55999999,0.00016,2]
[419145557,1774933861837,302.72,0.00011786,2]
[419145559,1774933932015,363.0,0.00011786,3]
[419145560,1774933932252,363.0,0.00013623,3]
[419145576,1774934823347,186.46,0.00012,90]
[419145577,1774934852124,-222.7654576,0.00012999,2]
[419145578,1774934852144,-250.0,0.00013,2]
[419145579,1774934852165,-311.0,0.00013,2]
[419145580,1774934852186,-260.71436126,0.00013312,2]
[419145581,1774934852206,-157.0,0.00013623,3]
[419145582,1774934852226,-327.0,0.00013623,3]
[419145583,1774934852247,-150.0,0.00013623,2]
[419145584,1774934852265,-192.53202621,0.00014199,2]
[419145585,1774934852284,-85.2839547,0.00014299,2]
[419145586,1774934949130,-169.56,0.00014242,2]
[419145587,1774934949150,-214.7160453,0.00014299,2]
[419145588,1774934949171,-195.0,0.00014299,2]
[419145589,1774934949191,-300.0,0.00014299,2]
[419145590,1774934949211,-216.0,0.00014299,2]
[419145591,1774934949232,-1200.0,0.00014299,2]
[419145592,1774934949253,-300.0,0.00014299,2]
[419145593,1774934949274,-196.33564312,0.000143,2]
[419145594,1774934949293,-178.72987032,0.000143,2]
[419145595,1774934950069,-71.27012968,0.000143,2]
[419145596,1774934971387,166.66,0.00013967,2]
[419145597,1774934971454,192.53202621,0.00014199,2]
[419145598,1774934971495,166.66,0.00014261,2]
[419145600,1774935005915,310.0,0.00013623,3]
[419145601,1774935006220,157.0,0.00013623,3]
[419145631,1774935032886,-327.8108,0.00014489,2]
[419145632,1774935032896,-72.1892,0.000145,2]
[419145633,1774935032908,-77.8108,0.000145,2]
[419145634,1774935032918,-797.4106,0.00014531,2]
[419145635,1774935032961,-702.5894,0.00014531,2]
[419145636,1774935032970,-166.66,0.00014555,2]
[419145637,1774935032980,-1172.27,0.00014559,2]
[419145638,1774935032989,-185.63,0.00014574,2]
[419145639,1774935032998,-166.66,0.00014849,2]
[419145640,1774935033008,-150.0,0.00014863,2]
[419145641,1774935033017,-500.0,0.00014863,2]
[419145642,1774935033026,-300.0,0.00015,2]
[419145643,1774935033035,-1200.0,0.00015012,2]
[419145644,1774935033044,-3336.89,0.00015013,2]
[419145645,1774935033054,-300.0,0.00015032,2]
[419145646,1774935033063,-300.0,0.00015032,2]
[419145647,1774935033072,-14246.12,0.00015033,2]
[419145648,1774935033081,-4457.66,0.00015033,2]
[419145649,1774935033091,-3035.71,0.00015033,2]
[419145650,1774935033100,-166.66,0.0001504,2]
[419145651,1774935033109,-192.53202621,0.00015072,2]
[419145652,1774935033119,-166.66,0.00015143,2]
[419145653,1774935033128,-215.38422801,0.00015144,2]
[419145654,1774935033138,-240.25531112,0.00015144,2]
[419145655,1774935033147,-216.24645974,0.00015154,2]
[419145656,1774935033156,-1061.4,0.00015172,2]
[419145657,1774935033166,-151.0,0.00015172,2]
[419145658,1774935033175,-209.40437685,0.00015172,2]